fUSD/lending_fUSD_20240814
["ID","MTS","AMOUNT","RATE_DAILY","PERIOD"]
[334870646,1723620663135,-500.0,0.0001452,2]
[334870647,1723620663144,-151.0,0.0001452,2]
[334870648,1723620663154,-151.0,0.0001452,2]
[334870649,1723620663163,-500.0,0.0001452,2]
[334870650,1723620663173,-500.0,0.0001452,2]
[334870651,1723620663183,-537.52,0.0001452,2]
[334870652,1723620663193,-500.0,0.0001452,2]
[334870653,1723620663202,-500.0,0.0001452,2]
[334870654,1723620663212,-500.0,0.0001452,2]
[334870655,1723620663221,-500.0,0.0001452,2]
[334870656,1723620663231,-500.0,0.0001452,2]
[334870657,1723620663241,-500.0,0.0001452,2]
[334870658,1723620663251,-500.0,0.0001452,2]
[334870659,1723620663261,-500.0,0.0001452,2]
[334870660,1723620663270,-500.0,0.0001452,2]
[334870661,1723620663281,-500.0,0.0001452,2]
[334870662,1723620663291,-500.0,0.0001452,2]
[334870663,1723620663301,-617.54,0.0001452,2]
[334870664,1723620663311,-1108.96,0.0001452,2]
[334870665,1723620663320,-643.5,0.0001452,2]
[334870666,1723620663330,-500.0,0.0001452,2]
[334870667,1723620663339,-500.0,0.0001452,2]
[334870668,1723620663350,-500.0,0.0001452,2]
[334870669,1723620663360,-721.48,0.0001452,2]
[334870670,1723620663370,-500.0,0.0001452,2]
[334870671,1723620663380,-500.0,0.0001452,2]
[334870672,1723620663390,-500.0,0.0001452,2]
[334870673,1723620663399,-500.0,0.0001452,2]
[334870674,1723620663409,-500.0,0.0001452,2]
[334870675,1723620663422,-500.0,0.0001452,2]
[334870676,1723620663431,-500.0,0.0001452,2]
[334870677,1723620663442,-951.16,0.0001452,2]
[334870678,1723620663452,-500.0,0.0001452,2]
[334870679,1723620663462,-151.0,0.0001452,2]
[334870680,1723620663472,-247.853724,0.0001452,2]
[334870681,1723620663481,-500.0,0.0001452,2]
[334870682,1723620663491,-500.0,0.0001452,2]
[334870683,1723620663502,-500.0,0.0001452,2]
[334870684,1723620663513,-500.0,0.0001452,2]
[334870685,1723620663522,-500.0,0.0001452,2]
[334870686,1723620663532,-500.0,0.0001452,2]
[334870687,1723620663542,-500.0,0.0001452,2]
[334870688,1723620663552,-500.0,0.0001452,2]
[334870689,1723620663562,-500.0,0.0001452,2]
[334870690,1723620663572,-500.0,0.0001452,2]
[334870691,1723620663582,-500.0,0.0001452,2]
[334870692,1723620663592,-500.0,0.0001452,2]
[334870693,1723620663603,-631.27897218,0.0001452,2]
[334870694,1723620663613,-517.4,0.0001452,2]
[334870695,1723620663623,-500.0,0.0001452,2]
[334870696,1723620663633,-500.0,0.0001452,2]
[334870697,1723620663646,-390.48100713,0.0001452,2]
[334870698,1723620663664,-500.0,0.0001452,2]
[334870699,1723620663681,-1099.42,0.0001452,2]
[334870700,1723620663691,-500.0,0.0001452,2]
[334870701,1723620663701,-500.0,0.0001452,2]
[334870702,1723620663710,-500.0,0.0001452,2]
[334870703,1723620663720,-564.94005763,0.0001452,2]
[334870704,1723620663730,-500.0,0.0001452,2]
[334870705,1723620663740,-720.96,0.0001452,2]
[334870706,1723620663751,-545.17,0.0001452,2]
[334870707,1723620663760,-381.52,0.0001452,2]
[334870708,1723620663770,-500.0,0.0001452,2]
[334870709,1723620663780,-500.0,0.0001452,2]
[334870710,1723620663790,-502.3,0.0001452,2]
[334870711,1723620663800,-500.0,0.0001452,2]
[334870712,1723620663809,-500.0,0.0001452,2]
[334870713,1723620663819,-500.0,0.0001452,2]
[334870714,1723620663829,-500.0,0.0001452,2]
[334870715,1723620663839,-302.08736209,0.0001452,2]
[334870716,1723620663848,-500.0,0.0001452,2]
[334870717,1723620663858,-151.0,0.0001452,2]
[334870718,1723620663868,-151.0,0.0001452,2]
[334870719,1723620663878,-500.0,0.0001452,2]
[334870720,1723620663888,-500.0,0.0001452,2]
[334870721,1723620663898,-500.0,0.0001452,2]
[334870722,1723620663908,-500.0,0.0001452,2]
[334870723,1723620663918,-500.0,0.0001452,2]
[334870724,1723620663928,-169.736676,0.0001452,2]
[334870725,1723620663937,-169.736676,0.0001452,2]
[334870726,1723620663947,-500.0,0.0001452,2]
[334870727,1723620663956,-380.35714317,0.0001452,2]
[334870728,1723620663966,-500.0,0.0001452,2]
[334870729,1723620663976,-169.736676,0.0001452,2]
[334870730,1723620663986,-500.0,0.0001452,2]
[334870731,1723620663996,-500.0,0.0001452,2]
[334870732,1723620664006,-169.736676,0.0001452,2]
[334870733,1723620664015,-500.0,0.0001452,2]
[334870734,1723620664025,-500.0,0.0001452,2]
[334870735,1723620664035,-500.0,0.0001452,2]
[334870736,1723620664045,-500.0,0.0001452,2]
[334870737,1723620664055,-500.0,0.0001452,2]
[334870738,1723620664065,-500.0,0.0001452,2]
[334870739,1723620664075,-613.5,0.0001452,2]
[334870740,1723620664086,-500.0,0.0001452,2]
[334870741,1723620664096,-500.0,0.0001452,2]
[334870742,1723620664107,-500.0,0.0001452,2]
[334870743,1723620664117,-349.59448208,0.0001452,2]
[334870744,1723620664127,-862.74,0.0001452,2]
[334870745,1723620664136,-500.0,0.0001452,2]
[334870746,1723620664147,-500.0,0.0001452,2]
[334870747,1723620664157,-409.37698388,0.0001452,2]
[334870748,1723620664167,-552.06,0.0001452,2]
[334870749,1723620664177,-500.0,0.0001452,2]
[334870750,1723620664187,-500.0,0.0001452,2]
[334870751,1723620664197,-500.0,0.0001452,2]
[334870752,1723620664207,-648.18,0.0001452,2]
[334870753,1723620664217,-860.96,0.0001452,2]
[334870754,1723620664227,-500.0,0.0001452,2]
[334870755,1723620664237,-500.0,0.0001452,2]
[334870756,1723620664247,-1377.93,0.0001452,2]
[334870757,1723620664256,-500.0,0.0001452,2]
[334870758,1723620664266,-1553.5,0.0001452,2]
[334870759,1723620664276,-500.0,0.0001452,2]
[334870760,1723620664287,-500.0,0.0001452,2]
[334870761,1723620664297,-875.79,0.0001452,2]
[334870762,1723620664307,-500.0,0.0001452,2]
[334870763,1723620664317,-500.0,0.0001452,2]
[334870764,1723620664328,-500.0,0.0001452,2]
[334870765,1723620664338,-500.0,0.0001452,2]
[334870766,1723620664348,-500.0,0.0001452,2]
[334870767,1723620664360,-500.0,0.0001452,2]
[334870768,1723620664370,-517.31,0.0001452,2]
[334870769,1723620664381,-500.0,0.0001452,2]
[334870770,1723620664391,-802.23,0.0001452,2]
[334870771,1723620664401,-500.0,0.0001452,2]
[334870772,1723620664411,-577.94,0.0001452,2]
[334870773,1723620664431,-500.0,0.0001452,2]
[334870774,1723620664450,-500.0,0.0001452,2]
[334870775,1723620664461,-557.73,0.0001452,2]
[334870776,1723620664471,-500.0,0.0001452,2]
[334870777,1723620664482,-337.12,0.0001452,2]
[334870778,1723620664492,-151.0,0.0001452,2]
[334870779,1723620664503,-500.0,0.0001452,2]
[334870780,1723620664515,-334.01093124,0.0001452,2]
[334870781,1723620664525,-575.4,0.0001452,2]
[334870782,1723620664535,-603.71,0.0001452,2]
[334870783,1723620664545,-500.0,0.0001452,2]
[334870784,1723620664555,-583.2,0.0001452,2]
[334870785,1723620664565,-500.0,0.0001452,2]
[334870786,1723620664575,-659.68,0.0001452,2]
[334870787,1723620664586,-500.0,0.0001452,2]
[334870788,1723620664596,-500.0,0.0001452,2]
[334870789,1723620664607,-501.07,0.0001452,2]
[334870790,1723620664617,-197.53805709,0.0001452,2]
[334870791,1723620664628,-500.0,0.0001452,2]
[334870792,1723620664639,-500.0,0.0001452,2]
[334870793,1723620664650,-509.16,0.0001452,2]
[334870794,1723620664660,-500.0,0.0001452,2]
[334870795,1723620664670,-500.0,0.0001452,2]
[334870796,1723620664681,-642.16,0.0001452,2]
[334870797,1723620664691,-542.76,0.0001452,2]
[334870798,1723620664701,-500.0,0.0001452,2]
[334870799,1723620664712,-500.0,0.0001452,2]
[334870800,1723620664723,-500.0,0.0001452,2]
[334870801,1723620664733,-500.0,0.0001452,2]
[334870802,1723620664743,-714.09,0.0001452,2]
[334870803,1723620664753,-500.0,0.0001452,2]
[334870804,1723620664763,-500.0,0.0001452,2]
[334870805,1723620664773,-1105.55,0.0001452,2]
[334870806,1723620664958,-646.97,0.0001452,2]
[334870807,1723620664969,-1302.61,0.0001452,2]
[334870808,1723620664978,-500.0,0.0001452,2]
[334870809,1723620664988,-4230.22,0.0001452,2]
[334870810,1723620664998,-500.0,0.0001452,2]
[334870811,1723620665008,-500.0,0.0001452,2]
[334870812,1723620665017,-1927.63,0.0001452,2]
[334870813,1723620665027,-538.83,0.0001452,2]
[334870814,1723620665037,-151.0,0.0001452,2]
[334870815,1723620665046,-500.0,0.0001452,2]
[334870816,1723620665056,-3771.24,0.0001452,2]
[334870817,1723620665066,-500.0,0.0001452,2]
[334870818,1723620665075,-500.0,0.0001452,2]
[334870819,1723620665085,-500.0,0.0001452,2]
[334870820,1723620665094,-2583.53,0.0001452,2]
[334870821,1723620665105,-589.05,0.0001452,2]
[334870822,1723620665115,-500.0,0.0001452,2]
[334870823,1723620665124,-638.08,0.0001452,2]
[334870824,1723620665133,-705.12,0.0001452,2]
[334870825,1723620665143,-500.0,0.0001452,2]
[334870826,1723620665153,-1567.35,0.0001452,2]
[334870827,1723620665163,-2757.25,0.0001452,2]
[334870828,1723620665173,-5777.23,0.0001452,2]
[334870829,1723620665182,-642.62,0.0001452,2]
[334870830,1723620665192,-12612.61,0.0001452,2]
[334870831,1723620665201,-500.0,0.0001452,2]
[334870832,1723620665211,-500.0,0.0001452,2]
[334870833,1723620665220,-500.0,0.0001452,2]
[334870834,1723620665230,-724.19,0.0001452,2]
[334870835,1723620665240,-675.15,0.0001452,2]
[334870836,1723620665249,-2454.92,0.0001452,2]
[334870837,1723620665259,-699.56,0.0001452,2]
[334870838,1723620665268,-3995.99,0.0001452,2]
[334870839,1723620665278,-1562.13,0.0001452,2]
[334870840,1723620665287,-500.0,0.0001452,2]
[334870841,1723620665297,-500.0,0.0001452,2]
[334870842,1723620665307,-1021.09,0.0001452,2]
[334870843,1723620665317,-188.436552,0.0001452,2]
[334870844,1723620665327,-708.56,0.0001452,2]
[334870845,1723620665336,-500.0,0.0001452,2]
[334870846,1723620665346,-716.38,0.0001452,2]
[334870847,1723620665356,-1012.52,0.0001452,2]
[334870848,1723620665365,-339.71946857,0.0001452,2]
[334870849,1723620665375,-500.0,0.0001452,2]
[334870850,1723620665384,-151.0,0.0001452,2]
[334870851,1723620665394,-1574.06,0.0001452,2]
[334870852,1723620665403,-500.0,0.0001452,2]
[334870853,1723620665413,-500.0,0.0001452,2]
[334870854,1723620665425,-650.58,0.0001452,2]
[334870855,1723620665435,-590.62,0.0001452,2]
[334870856,1723620665444,-4431.9,0.0001452,2]
[334870857,1723620665454,-777.75,0.0001452,2]
[334870858,1723620665464,-500.0,0.0001452,2]
[334870859,1723620665474,-500.0,0.0001452,2]
[334870860,1723620665483,-500.0,0.0001452,2]
[334870861,1723620665493,-500.0,0.0001452,2]
[334870862,1723620665503,-626.17,0.0001452,2]
[334870863,1723620665513,-1296.7,0.0001452,2]
[334870864,1723620665522,-500.0,0.0001452,2]
[334870865,1723620665531,-3542.6,0.0001452,2]
[334870866,1723620665541,-35269.02,0.0001452,2]
[334870867,1723620665551,-561.92,0.0001452,2]
[334870868,1723620665560,-743.95,0.0001452,2]
[334870869,1723620665570,-3665.95,0.0001452,2]
[334870870,1723620665579,-763.73,0.0001452,2]
[334870871,1723620665589,-500.0,0.0001452,2]
[334870872,1723620665599,-500.0,0.0001452,2]
[334870873,1723620665609,-1584.45,0.0001452,2]
[334870874,1723620665618,-500.0,0.0001452,2]
[334870875,1723620665628,-849.11,0.0001452,2]
[334870876,1723620665638,-500.0,0.0001452,2]
[334870877,1723620665647,-500.0,0.0001452,2]
[334870878,1723620665658,-500.0,0.0001452,2]
[334870879,1723620665671,-3814.92,0.0001452,2]
[334870880,1723620665681,-977.72,0.0001452,2]
[334870881,1723620665691,-1423.61,0.0001452,2]
[334870882,1723620665700,-1036.45,0.0001452,2]
[334870883,1723620665710,-151.0,0.0001452,2]
[334870884,1723620665719,-1638.4,0.0001452,2]
[334870885,1723620665728,-875.75,0.0001452,2]
[334870886,1723620665738,-3123.04,0.0001452,2]
[334870887,1723620665748,-67.74679263,0.0001452,2]
[334870888,1723620666130,-432.25320737,0.0001452,2]
[334870889,1723620666139,-4390.31,0.0001452,2]
[334870890,1723620666149,-500.0,0.0001452,2]
[334870891,1723620666158,-500.0,0.0001452,2]
[334870892,1723620666167,-345.908315,0.0001452,2]
[334870893,1723620666176,-500.0,0.0001452,2]
[334870894,1723620666185,-1041.59,0.0001452,2]
[334870895,1723620666195,-500.0,0.0001452,2]
[334870896,1723620666204,-345.908315,0.0001452,2]
[334870897,1723620666213,-2253.8,0.0001452,2]
[334870898,1723620666222,-2098.0,0.0001452,2]
[334870899,1723620666232,-500.0,0.0001452,2]
[334870900,1723620666241,-500.0,0.0001452,2]
[334870901,1723620666250,-672.57,0.0001452,2]
[334870902,1723620666259,-1025.9,0.0001452,2]
[334870903,1723620666269,-500.0,0.0001452,2]
[334870904,1723620666279,-500.0,0.0001452,2]
[334870905,1723620666288,-500.0,0.0001452,2]
[334870906,1723620666298,-500.0,0.0001452,2]
[334870907,1723620666307,-1015.73,0.0001452,2]
[334870908,1723620666316,-500.0,0.0001452,2]
[334870909,1723620666326,-1149.64,0.0001452,2]
[334870910,1723620666335,-500.0,0.0001452,2]
[334870911,1723620666346,-500.0,0.0001452,2]
[334870912,1723620666355,-1020.09,0.0001452,2]
[334870913,1723620666364,-500.0,0.0001452,2]
[334870914,1723620666374,-503.40894443,0.0001452,2]
[334870915,1723620666383,-500.0,0.0001452,2]
[334870916,1723620666393,-637.53,0.0001452,2]
[334870917,1723620666402,-500.0,0.0001452,2]
[334870918,1723620666413,-500.0,0.0001452,2]
[334870919,1723620666426,-289.52683798,0.0001452,2]
[334870920,1723620666436,-500.0,0.0001452,2]
[334870921,1723620666446,-500.0,0.0001452,2]
[334870922,1723620666455,-217.21999654,0.0001452,2]
[334870923,1723620666465,-598.95,0.0001452,2]
[334870924,1723620666475,-500.0,0.0001452,2]
[334870925,1723620666484,-3408.8,0.0001452,2]
[334870926,1723620666494,-500.0,0.0001452,2]
[334870927,1723620666504,-500.0,0.0001452,2]
[334870928,1723620666513,-1220.39,0.0001452,2]
[334870929,1723620666523,-500.0,0.0001452,2]
[334870930,1723620666533,-500.0,0.0001452,2]
[334870931,1723620666543,-828.63,0.0001452,2]
[334870932,1723620666553,-1276.97,0.0001452,2]
[334870933,1723620666562,-5042.49,0.0001452,2]
[334870934,1723620666571,-500.0,0.0001452,2]
[334870935,1723620666581,-500.0,0.0001452,2]
[334870936,1723620666590,-541.07105308,0.0001452,2]
[334870937,1723620666603,-107.76894692,0.0001452,2]
[334870938,1723620666623,-849.43,0.0001452,2]
[334870939,1723620666632,-697.5,0.0001452,2]
[334870940,1723620666642,-1088.84,0.0001452,2]
[334870941,1723620666651,-500.0,0.0001452,2]
[334870942,1723620666660,-1178.52,0.0001452,2]
[334870943,1723620666669,-690.09,0.0001452,2]
[334870944,1723620666678,-618.66,0.0001452,2]
[334870945,1723620666687,-866.59,0.0001452,2]
[334870946,1723620666696,-500.0,0.0001452,2]
[334870947,1723620666706,-1000.0,0.0001452,2]
[334870948,1723620666715,-151.0,0.0001452,2]
[334870949,1723620666724,-500.0,0.0001452,2]
[334870950,1723620666733,-2098.19,0.0001452,2]
[334870951,1723620666743,-500.0,0.0001452,2]
[334870952,1723620666752,-1862.93,0.0001452,2]
[334870953,1723620666761,-1000.0,0.0001452,2]
[334870954,1723620666771,-536.05,0.0001452,2]
[334870955,1723620666781,-1026.42,0.0001452,2]
[334870956,1723620666790,-151.0,0.0001452,2]
[334870957,1723620666799,-770.83,0.0001452,2]
[334870958,1723620666809,-500.0,0.0001452,2]
[334870959,1723620666818,-500.0,0.0001452,2]
[334870960,1723620666828,-2022.99,0.0001452,2]
[334870961,1723620666838,-926.67,0.0001452,2]
[334870962,1723620666847,-1308.09,0.0001452,2]
[334870963,1723620666858,-500.0,0.0001452,2]
[334870964,1723620666867,-707.31,0.0001452,2]
[334870965,1723620666877,-500.0,0.0001452,2]
[334870966,1723620666887,-1018.12,0.0001452,2]
[334870967,1723620666896,-1029.55,0.0001452,2]
[334870968,1723620666906,-500.0,0.0001452,2]
[334870969,1723620666915,-554.63,0.0001452,2]
[334870970,1723620666924,-500.0,0.0001452,2]
[334870971,1723620666934,-500.0,0.0001452,2]
[334870972,1723620666943,-1038.94,0.0001452,2]
[334870973,1723620666952,-853.95,0.0001452,2]
[334870974,1723620666961,-500.0,0.0001452,2]
[334870975,1723620666970,-500.0,0.0001452,2]
[334870976,1723620666979,-500.0,0.0001452,2]
[334870977,1723620666987,-500.0,0.0001452,2]
[334870978,1723620666996,-629.49407834,0.0001452,2]
[334870979,1723620667006,-500.0,0.0001452,2]
[334870980,1723620667015,-500.0,0.0001452,2]
[334870981,1723620667024,-500.0,0.0001452,2]
[334870982,1723620667033,-500.0,0.0001452,2]
[334870983,1723620667042,-1710.08,0.0001452,2]
[334870984,1723620667051,-691.25,0.0001452,2]
[334870985,1723620667061,-500.0,0.0001452,2]
[334870986,1723620667070,-500.0,0.0001452,2]
[334870987,1723620667079,-1036.3,0.0001452,2]
[334870988,1723620667088,-500.0,0.0001452,2]
[334870989,1723620667097,-1094.21,0.0001452,2]
[334870990,1723620667108,-500.0,0.0001452,2]
[334870991,1723620667117,-151.0,0.0001452,2]
[334870992,1723620667126,-1184.35,0.0001452,2]
[334870993,1723620667135,-500.0,0.0001452,2]
[334870994,1723620667155,-500.0,0.0001452,2]
[334870995,1723620667165,-500.0,0.0001452,2]
[334870996,1723620667175,-500.0,0.0001452,2]
[334870997,1723620667185,-664.34,0.0001452,2]
[334870998,1723620667195,-556.8,0.0001452,2]
[334870999,1723620667204,-1873.52,0.0001452,2]
[334871000,1723620667215,-500.0,0.0001452,2]
[334871001,1723620667225,-500.0,0.0001452,2]
[334871002,1723620667234,-500.0,0.0001452,2]
[334871003,1723620667244,-1573.93,0.0001452,2]
[334871004,1723620667254,-975.68,0.0001452,2]
[334871005,1723620667264,-3644.0,0.0001452,2]
[334871006,1723620667273,-500.0,0.0001452,2]
[334871007,1723620667283,-500.0,0.0001452,2]
[334871008,1723620667292,-500.0,0.0001452,2]
[334871009,1723620667302,-1757.08,0.0001452,2]
[334871010,1723620667311,-1512.55,0.0001452,2]
[334871011,1723620667321,-500.0,0.0001452,2]
[334871012,1723620667330,-500.0,0.0001452,2]
[334871013,1723620667339,-2217.29,0.0001452,2]
[334871014,1723620667349,-500.0,0.0001452,2]
[334871015,1723620667359,-723.59,0.0001452,2]
[334871016,1723620667368,-741.89,0.0001452,2]
[334871017,1723620667377,-829.58,0.0001452,2]
[334871018,1723620667387,-529.95,0.0001452,2]
[334871019,1723620667396,-500.0,0.0001452,2]
[334871020,1723620667405,-530.92,0.0001452,2]
[334871021,1723620667415,-598.22,0.0001452,2]
[334871022,1723620667427,-613.55433873,0.0001452,2]
[334871023,1723620667437,-686.51,0.0001452,2]
[334871024,1723620667447,-500.0,0.0001452,2]
[334871025,1723620667458,-500.0,0.0001452,2]
[334871026,1723620667469,-770.24,0.0001452,2]
[334871027,1723620667479,-737.04,0.0001452,2]
[334871028,1723620667488,-500.0,0.0001452,2]
[334871029,1723620667499,-561.79,0.0001452,2]
[334871030,1723620667509,-826.62,0.0001452,2]
[334871031,1723620667519,-916.91,0.0001452,2]
[334871032,1723620667528,-1114.22,0.0001452,2]
[334871033,1723620667538,-1356.07,0.0001452,2]
[334871034,1723620667547,-500.0,0.0001452,2]
[334871035,1723620667558,-500.0,0.0001452,2]
[334871036,1723620667568,-1189.45,0.0001452,2]
[334871037,1723620667578,-500.0,0.0001452,2]
[334871038,1723620667588,-500.0,0.0001452,2]
[334871039,1723620667598,-305.2364133,0.0001452,2]
[334871040,1723620667607,-747.49,0.0001452,2]
[334871041,1723620667616,-500.0,0.0001452,2]
[334871042,1723620667625,-500.0,0.0001452,2]
[334871043,1723620667635,-500.0,0.0001452,2]
[334871044,1723620667644,-3005.06,0.0001452,2]
[334871045,1723620667654,-500.0,0.0001452,2]
[334871046,1723620667664,-1128.02,0.0001452,2]
[334871047,1723620667674,-500.0,0.0001452,2]
[334871048,1723620667684,-150.0,0.00014673,2]
[334871049,1723620667693,-861.83460236,0.000147,3]
[334871050,1723620667702,-214.0,0.000147,2]
[334871051,1723620667711,-2523.81025,0.0001478,2]
[334871052,1723620667721,-7033.1550321,0.00014784,2]
[334871053,1723620667731,-2715.33911232,0.00014784,2]
[334871054,1723620667926,-17380.96409168,0.00014784,2]
[334871055,1723620667937,-2917.6798542,0.00014784,2]
[334871056,1723620668157,-155.04412,0.00014784,2]
[334871057,1723620668169,-1069.4,0.00014793,2]
[334871058,1723620668179,-1069.4,0.00014793,2]
[334871059,1723620668190,-154.515367,0.00014794,2]
[334871060,1723620668199,-500.0,0.00014794,2]
[334871061,1723620668208,-431.29745603,0.00014794,2]
[334871062,1723620668218,-260.110056,0.00014794,2]
[334871063,1723620668227,-500.0,0.00014794,2]
[334871064,1723620668237,-500.0,0.00014794,2]
[334871065,1723620668247,-500.0,0.00014794,2]
[334871066,1723620668256,-500.0,0.00014794,2]
[334871067,1723620668266,-500.0,0.00014794,2]
[334871068,1723620668275,-106.39732329,0.00014794,2]
[334871069,1723620668287,-393.60267671,0.00014794,2]
[334871070,1723620668296,-560.85,0.00014794,2]
[334871071,1723620668306,-500.0,0.00014794,2]
[334871072,1723620668317,-500.0,0.00014794,2]
[334871073,1723620668326,-500.0,0.00014794,2]
[334871074,1723620668334,-500.0,0.00014794,2]
[334871075,1723620668344,-500.0,0.00014794,2]
[334871076,1723620668353,-500.0,0.00014794,2]
[334871077,1723620668363,-56.48238434,0.00014794,2]
[334871078,1723620668379,-443.51761566,0.00014794,2]
[334871079,1723620668388,-500.0,0.00014794,2]
[334871080,1723620668398,-510.54,0.00014794,2]
[334871081,1723620668407,-500.0,0.00014794,2]
[334871082,1723620668416,-560.91,0.00014794,2]
[334871083,1723620668428,-510.65,0.00014794,2]
[334871084,1723620668438,-136.98238442,0.00014794,2]
[334871085,1723620668449,-363.01761558,0.00014794,2]
[334871086,1723620668459,-205.99652393,0.00014794,2]
[334871087,1723620668469,-500.0,0.00014794,2]
[334871088,1723620668478,-370.20120263,0.00014794,2]
[334871089,1723620668661,-1216.234,0.00013378,2]
[334871090,1723620668670,-500.0,0.00013698,2]
[334871091,1723620668679,-523.766,0.00013859,2]
[334871092,1723620668691,-552.91149202,0.00013859,2]
[334871093,1723620668701,-500.0,0.00013972,2]
[334871094,1723620668710,-500.0,0.00014246,2]
[334871095,1723620668721,-493.72813474,0.0001452,2]
[334871096,1723620668730,-771.75879737,0.00014794,2]
[334871097,1723620668739,-500.0,0.00014794,2]
[334871098,1723620668748,-500.0,0.00014794,2]
[334871099,1723620668758,-500.0,0.00014794,2]
[334871100,1723620668767,-513.16,0.00014794,2]
[334871101,1723620668776,-500.0,0.00014794,2]
[334871102,1723620668787,-3147.98,0.00014794,2]
[334871103,1723620668798,-551.46316529,0.00014794,2]
[334871104,1723620668807,-500.0,0.00014794,2]
[334871105,1723620668816,-500.0,0.00014794,2]
[334871106,1723620668826,-500.0,0.00014794,2]
[334871107,1723620668835,-500.0,0.00014794,2]
[334871108,1723620668844,-500.0,0.00014794,2]
[334871109,1723620668853,-500.0,0.00014794,2]
[334871110,1723620668863,-500.0,0.00014794,2]
[334871111,1723620668871,-813.31,0.00014794,2]
[334871112,1723620668880,-650.43,0.00014794,2]
[334871113,1723620668889,-500.0,0.00014794,2]
[334871114,1723620668899,-525.21,0.00014794,2]
[334871115,1723620668911,-500.0,0.00014794,2]
[334871116,1723620668921,-500.0,0.00014794,2]
[334871117,1723620668931,-431.29233653,0.00014794,2]
[334871118,1723620668941,-500.0,0.00014794,2]
[334871119,1723620668951,-500.0,0.00014794,2]
[334871120,1723620668962,-500.0,0.00014794,2]
[334871121,1723620668971,-597.92,0.00014794,2]
[334871122,1723620668981,-500.0,0.00014794,2]
[334871123,1723620668990,-500.0,0.00014794,2]
[334871124,1723620669000,-500.0,0.00014794,2]
[334871125,1723620669011,-500.0,0.00014794,2]
[334871126,1723620669023,-500.0,0.00014794,2]
[334871127,1723620669033,-802.41,0.00014794,2]
[334871128,1723620669042,-500.0,0.00014794,2]
[334871129,1723620669051,-506.88,0.00014794,2]
[334871130,1723620669063,-921.35,0.00014794,2]
[334871131,1723620669072,-500.0,0.00014794,2]
[334871132,1723620669081,-801.76,0.00014794,2]
[334871133,1723620669090,-500.0,0.00014794,2]
[334871134,1723620669100,-525.41448954,0.00014794,2]
[334871135,1723620669110,-500.0,0.00014794,2]
[334871136,1723620669120,-512.5,0.00014794,2]
[334871137,1723620669129,-503.92,0.00014794,2]
[334871138,1723620669138,-511.42,0.00014794,2]
[334871139,1723620669148,-890.99,0.00014794,2]
[334871140,1723620669157,-641.13,0.00014794,2]
[334871141,1723620669166,-500.0,0.00014794,2]
[334871142,1723620669176,-500.0,0.00014794,2]
[334871143,1723620669185,-727.93,0.00014794,2]
[334871144,1723620669195,-662.34,0.00014794,2]
[334871145,1723620669204,-500.0,0.00014794,2]